Cogmind - Beta 14 @@@ ROGUE MODE // 2024.10.17 @ 03:23:59 Player: WazdakkaGutsmek Result: Destroyed by as-61101 with Assembled Heavy Rifle Performance ------------- Evolutions (0) 0 Regions Visited (2) 400 Robots Destroyed (14) 70 Value Destroyed (410) 410 Prototype IDs (0) 0 Alien Tech Used (0) 0 Bonus (0) 0 TOTAL SCORE: 880 Bonus ------- None Cogmind --------- Core Integrity 0/250 Matter 300/300 Energy 98/100 System Corruption 1% Temperature Cool (0) Movement Core (50) Location -10/Mines Parts ------- > --- POWER (1) -------- (None) > --- PROPULSION (2) --- (None) > --- UTILITY (2) ------ (None) > --- WEAPON (2) ------- (None) > --- INVENTORY (5) ---- Ion Engine Light Treads Wheel Compact Wheel Heat Sink Peak State ------------ > --- POWER ------------ Ion Engine > --- PROPULSION ------- Aluminum Leg Aluminum Leg > --- UTILITY ---------- Heat Sink Small Storage Unit > --- WEAPON ----------- Medium Laser Particle Gun > --- INVENTORY -------- Ion Engine Light Treads Light Treads Wheel Compact Wheel [Rating: 8] Favorites ----------- Power Ion Engine Engine Ion Engine Propulsion Aluminum Leg Leg Aluminum Leg Utility Small Storage Unit Device Heat Sink Storage Small Storage Unit Weapon Medium Laser Energy Gun Medium Laser Ballistic Gun Assault Rifle Build | -11 -10 -10 ------- Run | Yrd Mat Min Slots Evolved . | . . . Power . | . . . Propulsion . | . . . Utility . | . . . Weapon . | . . . Parts Attached 7 | . 7 . Power 1 | . 1 . Engine 1 | . 1 . Core . | . . . Reactor . | . . . Propulsion . | . . . Treads . | . . . Leg . | . . . Wheel . | . . . Hover . | . . . Flight . | . . . Utility 2 | . 2 . Device 2 | . 2 . Storage . | . . . Processor . | . . . Hackware . | . . . Protection . | . . . Artifact . | . . . Weapon 4 | . 4 . Energy Gun 4 | . 4 . Energy Cannon . | . . . Ballistic Gun . | . . . Ballistic Cannon . | . . . Launcher . | . . . Special Weapon . | . . . Impact Weapon . | . . . Slashing Weapon . | . . . Piercing Weapon . | . . . Special Melee Weapon . | . . . Unidentified Prototypes . | . . . Parts Lost 6 | . 5 1 Power 1 | . 1 . Propulsion 1 | . 1 . Utility . | . . . Weapon 4 | . 3 1 Highest Loss Streak 4 | . 4 1 To Critical Strikes . | . . . Average Slot Usage (%) 87 | . 90 68 Engine 12 | . 13 11 Leg 23 | . 25 11 Device 10 | . 10 11 Storage 13 | . 14 11 Energy Gun 25 | . 25 22 Peak Build Rating 8 | 6 8 6 Average Rating 6 | 6 6 4 On Entrance 6 | 6 6 6 Naked Turns 18 | . . 18 Heaviest Build 16 | 14 16 11 Greatest Support 20 | 20 20 10 Greatest Overweight (x) 1 | . 1 1 Average Overweight (x) . | . . . Largest Inventory Capacity 8 | 8 8 8 Average Capacity 7 | 8 8 7 Most Carried 6 | 6 6 6 Average Carried 5 | 6 5 5 Final Capacity 8 | 8 8 5 Final Carried 6 | 6 6 5 Class Distribution -------------------- 75% | Mutant 24% | Scavenger-Mutant Dominant Class ---------------- Mutant | -10/Materials Scavenger-Mutant | -10/Mines Resources | -11 -10 -10 ----------- Run | Yrd Mat Min Matter Collected 269 | 154 111 4 Remotely . | . . . Salvage Created 514 | . 514 . Parts 22 | . 22 . Haulers Intercepted . | . . . Recyclers Shooed . | . . . Parts Field Recycled . | . . . Retrieved Matter . | . . . Parts Self-Destructed . | . . . Prevented . | . . . Kills | -11 -10 -10 ------- Run | Yrd Mat Min Combat Hostiles Destroyed 10 | . 10 . Melee 1 | . 1 . Guns 9 | . 9 . Classes Destroyed 3 | . 3 . Worker 2 | . 2 . Watcher 2 | . 2 . Grunt 10 | . 10 . Best Kill Streak 5 | . 5 . Combat Bots Only 2 | . 2 . Max Kills in Single Turn 1 | . 1 . Gunslinging . | . . . Exploded . | . . . Melee 1 | . 1 . Uniques/NPCs Destroyed . | . . . Combat | -11 -10 -10 -------- Run | Yrd Mat Min Hostile Shots Fired 81 | . 64 17 Missed 21 | . 15 6 Damage Taken 843 | . 597 246 Core 255 | . 89 166 Absorbed by Shields . | . . . Core Remaining (%) 100 | 100 . . Volleys Fired 49 | . 49 . Largest 2 | . 2 . Hottest 115 | . 115 . Shots Fired 84 | . 84 . Gun 84 | . 84 . Cannon . | . . . Launcher . | . . . Special . | . . . Kinetic . | . . . Thermal 84 | . 84 . Explosive . | . . . Electromagnetic . | . . . Robot Hit Streak 9 | . 9 . Robot Miss Streak 4 | . 4 . Penetration Max . | . . . Secondary Targets 1 | . 1 . Max Gunslinging Chain 1 | . 1 . Shots Hit Robots 57 | . 57 . Core Hits 27 | . 27 . Critical Kills . | . . . Critical Parts Destroyed . | . . . Critical Strikes 6 | . 6 . Burn 6 | . 6 . Melee Attacks . | . . . Impact . | . . . Slashing . | . . . Piercing . | . . . Sneak Attacks . | . . . Combat Hostiles . | . . . Follow-up Attacks . | . . . Damage Inflicted 765 | . 765 . Guns 761 | . 761 . Cannons . | . . . Explosions . | . . . Melee . | . . . Ramming 4 | . 4 . Kinetic . | . . . Thermal 761 | . 761 . Explosive . | . . . Electromagnetic . | . . . Impact . | . . . Slashing . | . . . Piercing . | . . . Highest Corruption 1 | . 1 1 Average Corruption 1 | . 1 1 Corruption Purged . | . . . Corruption Blocked . | . . . Effects 6 | . 3 3 Matter Fused 1 | . . 1 Heat Flow Errors 2 | . 1 1 Energy Discharges 1 | . 1 . Data Loss (minor) 1 | . . 1 Weapon Failures 1 | . 1 . Overload Shots . | . . . Overflow Damage . | . . . Projectiles . | . . . Explosions . | . . . Melee . | . . . Knockbacks . | . . . Impact . | . . . Kinetic . | . . . Secondary . | . . . Self-Inflicted Damage . | . . . Shots . | . . . Rammed . | . . . Targets Rammed 1 | . 1 . Kicked 1 | . 1 . Crushed . | . . . Highest Temperature 321 | . 321 100 Average Temperature 98 | . 99 56 Received Heat Transfer 336 | . 336 . Siege Activations . | . . . Robots Corrupted . | . . . Combat Hostiles . | . . . Parts Fried . | . . . Impact Corruptions . | . . . Robots Melted . | . . . Combat Hostiles . | . . . Parts Melted 9 | . 9 . Heat Transferred 2554 | . 2554 . Parts Sabotaged . | . . . Parts Stolen . | . . . Parts Stripped . | . . . Power Chain Reactions . | . . . Alert | -11 -10 -10 ------- Run | Yrd Mat Min Peak Influence 265 | . 265 65 Initial 52 | . . 52 Average 120 | . 135 58 Maximum Alert Level 1 | . 1 . Low Security (%) 84 | 100 80 100 Level 1 15 | . 19 . Level 2 . | . . . Level 3 . | . . . Level 4 . | . . . Level 5 . | . . . High Security . | . . . Max Security . | . . . Squads Dispatched 4 | . 4 . Investigation 2 | . 2 . Extermination . | . . . Reinforcement 2 | . 2 . Assault . | . . . Garrison . | . . . Intercept . | . . . Searches Triggered . | . . . Construction Impeded . | . . . Haulers Reinforced . | . . . Active Scanning Responses . | . . . Cargo Convoy Interrupts . | . . . Stealth | -11 -10 -10 --------- Run | Yrd Mat Min Distress Signals 1 | . 1 . Communications Jammed . | . . . Distress Signals . | . . . Times Spotted 36 | . 17 19 Peak Tracking Total 18 | . 3 18 Tactical Retreats 1 | . . 1 Traps | -11 -10 -10 ------- Run | Yrd Mat Min Traps Triggered 2 | . 2 . Indirectly . | . . . Trap Hack Attempts . | . . . Triggered . | . . . Disarmed . | . . . Reprogrammed . | . . . Reused . | . . . Traps Extracted . | . . . Installed . | . . . Triggered . | . . . Machines | -11 -10 -10 ---------- Run | Yrd Mat Min Machines Disabled 1 | . 1 . Max in Single Turn 1 | . 1 . Machines Repaired . | . . . Machines Dismantled . | . . . Machines Sabotaged . | . . . Overloaded Fab Kills . | . . . Hacking | -11 -10 -10 --------- Run | Yrd Mat Min Machines Accessed 4 | . 3 1 Terminals 4 | . 3 1 Fabricators . | . . . Repair Stations . | . . . Recycling Units . | . . . Scanalyzers . | . . . Garrison Access . | . . . Total Hacks 12 | . 8 4 Successful 2 | . 1 1 Failed 10 | . 7 3 Catastrophic 1 | . 1 . Database Lockouts . | . . . Manual 12 | . 8 4 Terminals 12 | . 8 4 Fabricators . | . . . Repair Stations . | . . . Recycling Units . | . . . Scanalyzers . | . . . Garrison Access . | . . . Terminal Hacks 1 | . . 1 Branch Access Points 1 | . . 1 Fabricator Hacks . | . . . Repair Station Hacks . | . . . Recycling Unit Hacks . | . . . Scanalyzer . | . . . Garrison Access Hacks . | . . . Unauthorized Hacks 1 | . 1 . Terminals 1 | . 1 . Botnet 1 | . 1 . Fabricators . | . . . Repair Stations . | . . . Recycling Units . | . . . Scanalyzers . | . . . Garrison Access . | . . . Data Cores Recovered . | . . . Used . | . . . Hacking Detections 3 | . 3 . Full Trace Events 1 | . 1 . Feedback Events . | . . . Feedback Blocked . | . . . Robot Schematics Acquired . | . . . Robots Built . | . . . Authchips . | . . . Time . | . . . Total Robot Build Rating . | . . . Part Schematics Acquired . | . . . Parts Built . | . . . Authchips . | . . . Time . | . . . Total Part Build Rating . | . . . Parts Repaired . | . . . Time . | . . . Parts Recycled . | . . . Recycled Matter . | . . . Retrieved Matter . | . . . Retrieved Components . | . . . Parts Scanalyzed . | . . . Part Schematics Acquired . | . . . Parts Damaged . | . . . Bothacking | -11 -10 -10 ------------ Run | Yrd Mat Min Used RIF Installer . | . . . Robots Hacked . | . . . Non-combat . | . . . Combat . | . . . Robot Hacks Applied . | . . . Relay Couplers Released . | . . . Fabnet Peak Effective % . | . . . Robots Rewired . | . . . Allies Hacked . | . . . Hacks Repelled . | . . . Allies | -11 -10 -10 -------- Run | Yrd Mat Min Total Allies . | . . . Largest Group . | . . . Highest-Rated Group . | . . . Highest-Rated Ally . | . . . Total Orders . | . . . Ally Attacks . | . . . Total Damage . | . . . Kills . | . . . Allies Corrupted . | . . . Allies Melted . | . . . Intel | -11 -10 -10 ------- Run | Yrd Mat Min Robot Analysis Total . | . . . Derelict Logs Recovered . | . . . Drone Launches . | . . . Drone Recoveries . | . . . Exploration | -11 -10 -10 ------------- Run | Yrd Mat Min Turns Passed 664 | 17 547 100 Spaces Moved 399 | 15 304 80 Core 37 | . . 37 Treads . | . . . Legs 362 | 15 304 43 Wheels . | . . . Hover . | . . . Flight . | . . . Fastest Speed 50 | 120 120 50 Average Speed 127 | 120 128 125 Slowest Speed 190 | 120 190 190 Overloaded Moves . | . . . Propulsion Burnouts . | . . . Robots Hopped . | . . . Cave-ins Triggered . | . . . Exploration Rate (%) 29 | 2 54 32 Regions Visited 2 Branch Regions 1 Pre-discovered Areas 1 | . . 1 Known Exits Taken . | . . . Unknown Exits Taken 2 | 1 1 . Scrap Searched . | . . . Spaces Dug . | . . . Terrain Destroyed . | . . . Melee . | . . . Projectile . | . . . AOE . | . . . Terrain Rammed . | . . . Walls Destroyed . | . . . Machines Disabled . | . . . Actions | -11 -10 -10 --------- Run | Yrd Mat Min Total 468 | 14 374 80 Wait 13 | . 13 . Move 397 | 14 303 80 Hop . | . . . Pick Up . | . . . Fast Attach 5 | . 5 . Attach . | . . . Detach . | . . . Swap 2 | . 2 . Drop 1 | . 1 . Fire 49 | . 49 . Melee . | . . . Ram . | . . . Kick 1 | . 1 . Crush . | . . . Escape Stasis . | . . . Rewire . | . . . Trap . | . . . Miscellaneous . | . . . Route ------- -11/Scrapyard -10/Materials (discovered 2 exits: [*Mat] / *Min) -10/Mines (discovered 1 exit: [*Mat]) History --------- Turn | Location | Event 1 | -11/Scrapyard | Discovered new exit (range 3) 18 | -11/Scrapyard | Entered Materials 84 | -10/Materials | Discovered new exit (range 6) 301 | -10/Materials | Build established: Mutant 503 | -10/Materials | Lost 4 parts (1p1n2w) 534 | -10/Materials | Discovered new exit (range 16) 565 | -10/Materials | Entered Mines 566 | -10/Mines | Learned location of Storage (-9) 566 | -10/Mines | Met a Derelict bent on vengeance 567 | -10/Mines | Discovered new exit (range 10) 637 | -10/Mines | Assembled infested the area 647 | -10/Mines | Released all parts (5) 648 | -10/Mines | Core integrity fell below 50% 661 | -10/Mines | Core integrity fell below 20% 665 | -10/Mines | Destroyed by as-61101 with Assembled Heavy Rifle Last Messages --------------- 00647_ Released Sml. Laser. 00647_ Released Lgt. Ion Engine. 00647_ Released Sml. Storage Unit. 00647_ Released Aluminum Leg. 00650_ as-14486 destroyed. 00650_ as-40168 destroyed. 00650_ as-56322 destroyed. 00652_ as-09939 destroyed. 00652_ as-27125 destroyed. 00652_ as-01991 destroyed. 00652_ as-11097 destroyed. 00652_ as-59724 destroyed. 00653_ as-03882 destroyed. 00655_ as-94092 destroyed. 00655_ as-38974 destroyed. 00655_ as-36880 destroyed. 00657_ System corrupted: Component data lost. 00657_ as-51986 destroyed. 00657_ Acquired 4 matter. 00665_ S-10 Pest destroyed. Map ----- +----------------------------------------------------+ | | | | | | | ???????????????????????????????????????? | | ???????????????????????????????????????? | | ???????????????????????????????????????? | | ???????????????????????????????????????? | | ???????????????????????????????????????? | | ???????????????????????????????????????? | | ???????????????????????????????????????? | | ???????????????????????????????????????? | | ???????????????????????????????????????? | | ???????????????????????????????????????? | | ???????????????????????????????????????? | | ???????????????????????????????????????? | | ???????????????????????????????????????? | | ??????????? ??????????????????????????? | | ??????????? ??????????????????????????? | | ??????????? ????????#?????????????????? | | ???????????# ??????? #?????????????????? | | ??????????## ??????? #?????????????????? | | ??????????# ???####t#??##?????????????? | | ?????????## ??## ## ##????????????? | | ?????????# ### != #????????????? | | ?????????# =%! * ######???????? | | ????????## @ [ %[s ??????? | | ????????# = ??????? | | ????????# #???????????? | | ????????# ## ##???????????? | | ????????## ##?? ##????????????? | | ?????????## a#????# ##?????????????? | | ??????????## #??????##??????????????? | | ???????????### #??? #?????????????????? | | ?????????????# a### #?????????????????? | | ????????????## #?????????????????? | | ????????????# #####?????????????????? | | ????????????# ##????????????????????? | | ????????????# ###??????????????????? | | ????????????# ##?????????????????? | | ????????????## * ##????????????????? | | ??????????##### ##%" ##???????????????? | | ?????????## ####### #???????????????? | | ?????????# ## # # !##??????????????? | | ?????????# =% #??????????????? | | ?????????## ! ##?????????????? | | ????????### ##????????????? | | ????????# ??????????? | | ????????# =%| #????????? | | ????????# ######????????? | | ????????# ###?????????????? | +----------------------------------------------------+ Best States ------------- Heat Dissipation 35 Energy Generation 10 Energy Capacity 250 Matter Stores 300 Matter Capacity 300 Sight Range 16 Terrain Scan Density 10 Evasion (%) 55 Item Schematics ----------------- None Robot Schematics ------------------ None Fabricated ------------ Nothing Alien Tech Used ----------------- None Achievements -------------- None Challenges ------------ None Game ------ Seed NovaCobblerRigger Manual? 0 Play Time 00:06:20 Cumulative 24.9 hours Start 2024.10.17 @ 03:19:04 End 2024.10.17 @ 03:23:59 Sessions 1 Manual Loads 0 Difficulty Rogue Special Mode None Game No. 22 Rogue 4 Adventurer 16 Explorer 2 Win Type - Total 1 Types 1/0/0/0/0/0/0/0/0 Lore% 7 Gallery% 29 Achievement% 31 Wizard Run 0 Options --------- Layout 2 ASCII 0 Keyboard 0 Movement Mouse Keybinds 1 Fullscreen 1 Font 24/Terminus Map View 50x44 Zoom Use 0% Tactical HUD 1 Map Filters NONE Filters NONE Steam 1 RUN: a50f22c0-8494-4fd3-97a4-4eaaa398fbf5